fUSD/lending_fUSD_20250513
["ID","MTS","AMOUNT","RATE_DAILY","PERIOD"]
[360887175,1747104643859,-363.90766389,0.00013738,2]
[360887176,1747104643870,-400.0,0.00013738,2]
[360887177,1747104643880,-400.0,0.00013738,2]
[360887179,1747104643890,-435.84643671,0.00013738,2]
[360887180,1747104643901,-400.0,0.00013738,2]
[360887181,1747104643911,-400.0,0.00013738,2]
[360887182,1747104643920,-400.0,0.00013738,2]
[360887183,1747104643931,-427.63,0.00013738,2]
[360887184,1747104643941,-400.0,0.00013738,2]
[360887185,1747104643951,-410.56,0.00013738,2]
[360887186,1747104643961,-343.73924614,0.00013738,2]
[360887187,1747104643970,-400.0,0.00013738,2]
[360887188,1747104643981,-400.0,0.00013738,2]
[360887189,1747104643991,-432.45004131,0.00013738,2]
[360887190,1747104644001,-400.0,0.00013738,2]
[360887191,1747104644011,-426.95669103,0.00013738,2]
[360887192,1747104644022,-400.0,0.00013738,2]
[360887193,1747104644031,-400.0,0.00013738,2]
[360887194,1747104644042,-400.0,0.00013738,2]
[360887195,1747104644052,-400.0,0.00013738,2]
[360887196,1747104644062,-400.0,0.00013738,2]
[360887197,1747104644072,-400.0,0.00013738,2]
[360887198,1747104644082,-400.0,0.00013738,2]
[360887199,1747104644094,-400.0,0.00013738,2]
[360887200,1747104644104,-400.0,0.00013738,2]
[360887201,1747104644113,-319.52341385,0.00013738,2]
[360887202,1747104644125,-452.28104386,0.00013738,2]
[360887203,1747104644135,-400.0,0.00013738,2]
[360887204,1747104644145,-400.0,0.00013738,2]
[360887205,1747104644155,-422.3433176,0.00013738,2]
[360887206,1747104644165,-859.94,0.00013738,2]
[360887207,1747104644175,-400.0,0.00013738,2]
[360887208,1747104644187,-505.82,0.00013738,2]
[360887209,1747104644197,-427.17116401,0.00013738,2]
[360887210,1747104644206,-400.0,0.00013738,2]
[360887211,1747104644216,-532.76,0.00013738,2]
[360887212,1747104644226,-400.0,0.00013738,2]
[360887213,1747104644236,-400.0,0.00013738,2]
[360887214,1747104644245,-449.29,0.00013738,2]
[360887215,1747104644256,-421.67345507,0.00013738,2]
[360887216,1747104644266,-412.40240081,0.00013738,2]
[360887217,1747104644275,-400.0,0.00013738,2]
[360887218,1747104644285,-339.17580998,0.00013738,2]
[360887219,1747104644295,-400.0,0.00013738,2]
[360887220,1747104644305,-400.0,0.00013738,2]
[360887221,1747104644315,-304.11651243,0.00013738,2]
[360887222,1747104644324,-400.0,0.00013738,2]
[360887223,1747104644334,-400.0,0.00013738,2]
[360887224,1747104644344,-400.0,0.00013738,2]
[360887225,1747104644354,-522.69,0.00013738,2]
[360887226,1747104644363,-400.0,0.00013738,2]
[360887227,1747104644373,-400.0,0.00013738,2]
[360887228,1747104644383,-400.0,0.00013738,2]
[360887229,1747104644392,-1254.81,0.00013738,2]
[360887230,1747104644402,-440.24800796,0.00013738,2]
[360887231,1747104644412,-400.0,0.00013738,2]
[360887232,1747104644422,-464.93723609,0.00013738,2]
[360887233,1747104644433,-448.23,0.00013738,2]
[360887234,1747104644444,-400.0,0.00013738,2]
[360887235,1747104644453,-400.0,0.00013738,2]
[360887236,1747104644463,-567.55,0.00013738,2]
[360887237,1747104644473,-400.0,0.00013738,2]
[360887238,1747104644483,-400.0,0.00013738,2]
[360887239,1747104644493,-400.0,0.00013738,2]
[360887240,1747104644502,-406.46869289,0.00013738,2]
[360887241,1747104644512,-400.0,0.00013738,2]
[360887242,1747104644522,-400.0,0.00013738,2]
[360887243,1747104644532,-591.59,0.00013738,2]
[360887244,1747104644542,-400.0,0.00013738,2]
[360887245,1747104644551,-212.85618961,0.00013738,2]
[360887246,1747104644561,-400.0,0.00013738,2]
[360887247,1747104644571,-400.0,0.00013738,2]
[360887248,1747104644581,-400.0,0.00013738,2]
[360887249,1747104644591,-504.46,0.00013738,2]
[360887250,1747104644601,-771.58,0.00013738,2]
[360887251,1747104644610,-462.39266391,0.00013738,2]
[360887252,1747104644620,-834.48,0.00013738,2]
[360887253,1747104644630,-400.0,0.00013738,2]
[360887254,1747104644639,-400.0,0.00013738,2]
[360887255,1747104644649,-400.0,0.00013738,2]
[360887256,1747104644658,-400.0,0.00013738,2]
[360887257,1747104644668,-413.71,0.00013738,2]
[360887258,1747104644678,-400.0,0.00013738,2]
[360887259,1747104644688,-400.0,0.00013738,2]
[360887260,1747104644697,-400.0,0.00013738,2]
[360887261,1747104644707,-415.01781828,0.00013738,2]
[360887262,1747104644717,-808.59,0.00013738,2]
[360887263,1747104644726,-408.40669442,0.00013738,2]
[360887264,1747104644736,-400.0,0.00013738,2]
[360887265,1747104644745,-400.0,0.00013738,2]
[360887266,1747104644755,-400.0,0.00013738,2]
[360887267,1747104644764,-1101.26,0.00013738,2]
[360887268,1747104644773,-400.0,0.00013738,2]
[360887269,1747104644782,-400.0,0.00013738,2]
[360887270,1747104644792,-400.0,0.00013738,2]
[360887271,1747104644802,-400.0,0.00013738,2]
[360887272,1747104644812,-400.0,0.00013738,2]
[360887273,1747104644824,-1354.29,0.00013738,2]
[360887274,1747104644834,-400.0,0.00013738,2]
[360887275,1747104644844,-400.0,0.00013738,2]
[360887276,1747104644853,-788.14,0.00013738,2]
[360887277,1747104644863,-400.0,0.00013738,2]
[360887278,1747104644873,-416.55,0.00013738,2]
[360887279,1747104644883,-400.0,0.00013738,2]
[360887280,1747104644894,-400.0,0.00013738,2]
[360887281,1747104644905,-401.83455741,0.00013738,2]
[360887282,1747104644916,-691.45,0.00013738,2]
[360887283,1747104644925,-284.8007258,0.00013738,2]
[360887284,1747104644936,-400.0,0.00013738,2]
[360887285,1747104644946,-400.0,0.00013738,2]
[360887286,1747104644957,-400.0,0.00013738,2]
[360887287,1747104644967,-406.01825268,0.00013738,2]
[360887288,1747104644976,-5646.55,0.00013738,2]
[360887289,1747104644987,-469.53,0.00013738,2]
[360887290,1747104644997,-348.18013755,0.00013738,2]
[360887291,1747104645007,-415.44723434,0.00013738,2]
[360887292,1747104645016,-400.0,0.00013738,2]
[360887293,1747104645027,-400.0,0.00013738,2]
[360887294,1747104645036,-704.99,0.00013738,2]
[360887295,1747104645047,-400.0,0.00013738,2]
[360887296,1747104645056,-455.56575879,0.00013738,2]
[360887297,1747104645067,-400.0,0.00013738,2]
[360887298,1747104645077,-400.0,0.00013738,2]
[360887299,1747104645086,-564.4,0.00013738,2]
[360887300,1747104645096,-408.25263157,0.00013738,2]
[360887301,1747104645106,-400.0,0.00013738,2]
[360887302,1747104645116,-603.42,0.00013738,2]
[360887303,1747104645125,-567.02,0.00013738,2]
[360887304,1747104645135,-404.23772169,0.00013738,2]
[360887305,1747104645145,-403.77224921,0.00013738,2]
[360887306,1747104645155,-407.6315678,0.00013738,2]
[360887307,1747104645165,-400.0,0.00013738,2]
[360887308,1747104645175,-472.68,0.00013738,2]
[360887309,1747104645186,-400.0,0.00013738,2]
[360887310,1747104645195,-400.0,0.00013738,2]
[360887311,1747104645205,-400.0,0.00013738,2]
[360887312,1747104645215,-400.0,0.00013738,2]
[360887313,1747104645225,-644.52,0.00013738,2]
[360887314,1747104645235,-400.0,0.00013738,2]
[360887315,1747104645245,-400.0,0.00013738,2]
[360887316,1747104645255,-400.0,0.00013738,2]
[360887317,1747104645266,-447.32,0.00013738,2]
[360887318,1747104645277,-400.0,0.00013738,2]
[360887319,1747104645288,-400.0,0.00013738,2]
[360887321,1747104645297,-412.58050793,0.00013738,2]
[360887322,1747104645307,-400.0,0.00013738,2]
[360887323,1747104645317,-400.0,0.00013738,2]
[360887324,1747104645326,-400.0,0.00013738,2]
[360887325,1747104645336,-2005.24,0.00013738,2]
[360887326,1747104645346,-150.74345305,0.00013738,2]
[360887327,1747104645356,-400.0,0.00013738,2]
[360887328,1747104645365,-1095.99,0.00013738,2]
[360887329,1747104645375,-400.0,0.00013738,2]
[360887330,1747104645384,-400.0,0.00013738,2]
[360887331,1747104645394,-429.02,0.00013738,2]
[360887332,1747104645403,-400.0,0.00013738,2]
[360887333,1747104645412,-400.0,0.00013738,2]
[360887334,1747104645422,-400.0,0.00013738,2]
[360887335,1747104645433,-494.68,0.00013738,2]
[360887336,1747104645443,-400.0,0.00013738,2]
[360887337,1747104645453,-400.0,0.00013738,2]
[360887338,1747104645463,-400.0,0.00013738,2]
[360887339,1747104645474,-416.89,0.00013738,2]
[360887340,1747104645484,-419.22,0.00013738,2]
[360887341,1747104645494,-55035.74,0.00013738,2]
[360887342,1747104645504,-400.85797092,0.00013738,2]
[360887343,1747104645513,-400.0,0.00013738,2]
[360887344,1747104645522,-662.76,0.00013738,2]
[360887345,1747104645532,-1005.72,0.00013738,2]
[360887346,1747104645542,-500.0,0.00013738,2]
[360887347,1747104645552,-400.0,0.00013738,2]
[360887348,1747104645561,-400.0,0.00013738,2]
[360887349,1747104645570,-400.0,0.00013738,2]
[360887350,1747104645580,-825.1,0.00013738,2]
[360887351,1747104645589,-941.63,0.00013738,2]
[360887352,1747104645598,-400.0,0.00013738,2]
[360887353,1747104645608,-400.0,0.00013738,2]
[360887354,1747104645617,-400.0,0.00013738,2]
[360887355,1747104645627,-400.0,0.00013738,2]
[360887356,1747104645637,-400.0,0.00013738,2]
[360887357,1747104645646,-1751.89,0.00013738,2]
[360887358,1747104645657,-400.0,0.00013739,2]
[360887359,1747104645666,-400.0,0.00013739,2]
[360887360,1747104645676,-400.0,0.00013739,2]
[360887361,1747104645687,-489.53,0.00013739,2]
[360887362,1747104645697,-400.0,0.00013739,2]
[360887363,1747104645706,-400.0,0.00013739,2]
[360887364,1747104645716,-400.0,0.00013739,2]
[360887365,1747104645725,-857.03,0.00013739,2]
[360887366,1747104645735,-401.28849026,0.00013739,2]
[360887367,1747104645745,-631.87,0.00013739,2]
[360887368,1747104645754,-400.0,0.0001374,2]
[360887369,1747104645763,-537.32098438,0.0001374,2]
[360887370,1747104645772,-597.41,0.00013741,2]
[360887371,1747104645782,-172.24716139,0.00013748,2]
[360887372,1747104645791,-163.35923646,0.00013749,2]
[360887373,1747104645801,-1324.88,0.00013749,2]
[360887374,1747104645810,-162.26,0.00013766,2]
[360887375,1747104645821,-176.885,0.00013771,2]
[360887376,1747104645832,-1146.0,0.00013771,2]
[360887377,1747104645842,-5939.0,0.00013771,2]
[360887378,1747104645852,-500.0,0.00013773,2]
[360887379,1747104645863,-501.74743322,0.00013773,2]
[360887380,1747104645873,-517.75968215,0.00013773,2]
[360887381,1747104645883,-500.0,0.00013773,2]
[360887382,1747104645892,-3382.47519699,0.00013776,2]
[360887383,1747104645903,-151.0,0.0001379,2]
[360887384,1747104645913,-1909.91,0.0001379,2]
[360887385,1747104645923,-154.286715,0.0001379,2]
[360887386,1747104645934,-500.0,0.0001379,2]
[360887387,1747104645944,-400.0,0.0001379,2]
[360887388,1747104645953,-400.0,0.0001379,2]
[360887389,1747104645964,-400.0,0.0001379,2]
[360887390,1747104645973,-1407.52,0.0001379,2]
[360887391,1747104645983,-562.91,0.0001379,2]
[360887392,1747104645993,-1293.45,0.0001379,2]
[360887393,1747104646003,-499.21,0.0001379,2]
[360887394,1747104646012,-977.75,0.0001379,2]
[360887395,1747104646022,-620.91,0.0001379,2]
[360887396,1747104646032,-571.57,0.0001379,2]
[360887397,1747104646042,-157.87568,0.0001379,2]
[360887398,1747104646051,-1013.32,0.0001379,2]
[360887399,1747104646061,-151.0,0.0001379,2]
[360887400,1747104646070,-1000.0,0.0001379,2]
[360887401,1747104646080,-606.05,0.0001379,2]
[360887402,1747104646089,-426.13,0.0001379,2]
[360887403,1747104646099,-156.097386,0.0001379,2]
[360887404,1747104646108,-400.0,0.0001379,2]
[360887405,1747104646119,-1946.79,0.0001379,2]
[360887406,1747104646128,-912.88,0.0001379,2]
[360887407,1747104646137,-163.669603,0.0001379,2]
[360887408,1747104646147,-3040.32,0.0001379,2]
[360887409,1747104646158,-262.74204,0.0001379,2]
[360887410,1747104646167,-2294.65,0.0001379,2]
[360887411,1747104646178,-3209.16,0.0001379,2]
[360887412,1747104646188,-151.0,0.0001379,2]
[360887413,1747104646198,-400.0,0.0001379,2]
[360887414,1747104646207,-1075.81,0.0001379,2]
[360887415,1747104646218,-400.0,0.0001379,2]
[360887416,1747104646228,-151.0,0.0001379,2]
[360887417,1747104646238,-2867.21,0.0001379,2]
[360887418,1747104646247,-1647.31,0.0001379,2]
[360887419,1747104646257,-35150.88,0.0001379,2]
[360887420,1747104646267,-157.438599,0.0001379,2]
[360887421,1747104646277,-400.0,0.0001379,2]
[360887422,1747104646286,-151.0,0.0001379,2]
[360887423,1747104646297,-400.0,0.0001379,2]
[360887424,1747104646306,-492.95,0.0001379,2]
[360887425,1747104646317,-400.0,0.0001379,2]
[360887426,1747104646327,-996.79,0.0001379,2]
[360887427,1747104646336,-5841.41,0.0001379,2]
[360887428,1747104646346,-400.0,0.0001379,2]
[360887429,1747104646356,-511.55091982,0.0001379,2]
[360887430,1747104646365,-5952.86,0.0001379,2]
[360887431,1747104646375,-151.0,0.0001379,2]
[360887432,1747104646384,-1991.13,0.0001379,2]
[360887433,1747104646393,-13858.52,0.0001379,2]
[360887434,1747104646403,-400.0,0.0001379,2]
[360887435,1747104646412,-631.25,0.0001379,2]
[360887436,1747104646422,-151.0,0.0001379,2]
[360887437,1747104646433,-151.0,0.0001379,2]
[360887438,1747104646443,-4531.64,0.0001379,2]
[360887439,1747104646619,-152.502086,0.00013791,2]
[360887440,1747104646630,-152.502086,0.00013791,2]
[360887441,1747104646639,-151.0,0.00013791,2]
[360887442,1747104646649,-151.0,0.00013791,2]
[360887443,1747104646659,-151.0,0.00013791,2]
[360887444,1747104646668,-151.0,0.00013791,2]
[360887445,1747104646678,-151.0,0.00013791,2]
[360887446,1747104646688,-151.0,0.00013791,2]
[360887447,1747104646697,-153.773973,0.00013791,2]
[360887448,1747104646707,-151.0,0.00013791,2]
[360887449,1747104646717,-151.0,0.00013791,2]
[360887450,1747104646726,-151.0,0.00013791,2]
[360887451,1747104646735,-162.46627,0.00013791,2]
[360887452,1747104646744,-151.0,0.00013791,2]
[360887453,1747104646753,-151.0,0.00013791,2]
[360887454,1747104646762,-151.0,0.00013791,2]
[360887455,1747104646772,-151.0,0.00013791,2]
[360887456,1747104646781,-3756.6366472,0.00013791,2]
[360887457,1747104646790,-151.0,0.00013791,2]
[360887458,1747104646799,-5528.5880597,0.00013791,2]
[360887459,1747104646808,-407.403359,0.00013791,2]
[360887460,1747104646818,-151.0,0.00013791,2]
[360887461,1747104646831,-407.403359,0.00013791,2]
[360887462,1747104646841,-151.3744,0.00013791,2]
[360887463,1747104646850,-825.6693102,0.00013791,2]
[360887464,1747104646860,-151.0,0.00013791,2]
[360887465,1747104646871,-151.0,0.00013791,2]
[360887466,1747104646880,-151.0,0.00013791,2]
[360887467,1747104646890,-131425.571626,0.00013791,2]
[360887468,1747104646901,-151.0,0.00013791,2]
[360887469,1747104646912,-151.0,0.00013791,2]
[360887470,1747104646921,-4411.1349714,0.00013791,2]
[360887471,1747104646932,-155.244579,0.00013791,2]
[360887472,1747104646942,-400.0,0.00013792,2]
[360887473,1747104646951,-400.0,0.00013792,2]
[360887474,1747104646961,-933.694489,0.00013792,2]
[360887475,1747104646970,-400.0,0.00013792,2]
[360887476,1747104646979,-468.24,0.00013792,2]
[360887477,1747104646988,-428.73453665,0.00013792,2]
[360887478,1747104646998,-420.74373074,0.00013792,2]
[360887479,1747104647007,-400.0,0.00013792,2]
[360887480,1747104647016,-413.25684516,0.00013792,2]
[360887481,1747104647026,-400.0,0.00013792,2]
[360887482,1747104647036,-400.0,0.00013792,2]
[360887483,1747104647045,-400.0,0.00013792,2]
[360887484,1747104647054,-500.0,0.00013792,2]
[360887485,1747104647063,-400.0,0.00013792,2]
[360887486,1747104647073,-400.0,0.00013792,2]
[360887487,1747104647082,-738.93,0.00013792,2]
[360887488,1747104647091,-206.34,0.00013792,2]
[360887489,1747104647101,-400.0,0.00013792,2]
[360887490,1747104647111,-482.72,0.00013792,2]
[360887491,1747104647120,-1019.39,0.00013792,2]
[360887492,1747104647129,-400.0,0.00013792,2]
[360887493,1747104647138,-2106.56,0.00013792,2]
[360887494,1747104647147,-794.47,0.00013792,2]
[360887495,1747104647156,-172.50627534,0.00013792,2]
[360887496,1747104647166,-400.0,0.00013792,2]
[360887497,1747104647176,-400.0,0.00013792,2]
[360887498,1747104647187,-400.0,0.00013792,2]
[360887499,1747104647196,-400.0,0.00013792,2]
[360887500,1747104647206,-400.0,0.00013792,2]
[360887501,1747104647215,-400.0,0.00013792,2]
[360887502,1747104647224,-736.81,0.00013792,2]
[360887503,1747104647233,-400.0,0.00013792,2]
[360887504,1747104647243,-454.57381994,0.00013792,2]
[360887505,1747104647252,-1650.16,0.00013792,2]
[360887506,1747104647262,-400.0,0.00013792,2]
[360887507,1747104647271,-829.78,0.00013792,2]
[360887508,1747104647280,-400.0,0.00013792,2]
[360887509,1747104647289,-693.35,0.00013792,2]
[360887510,1747104647299,-400.0,0.00013792,2]
[360887511,1747104647308,-400.0,0.00013792,2]
[360887512,1747104647317,-484.58,0.00013792,2]
[360887513,1747104647327,-503.21,0.00013792,2]
[360887514,1747104647336,-722.05,0.00013792,2]
[360887515,1747104647345,-400.0,0.00013792,2]
[360887516,1747104647354,-1574.1,0.00013792,2]
[360887517,1747104647363,-690.77,0.00013792,2]
[360887518,1747104647373,-400.0,0.00013792,2]
[360887519,1747104647382,-400.0,0.00013792,2]
[360887520,1747104647392,-400.0,0.00013792,2]
[360887521,1747104647401,-400.0,0.00013792,2]
[360887522,1747104647411,-400.0,0.00013792,2]
[360887523,1747104647421,-824.74,0.00013792,2]
[360887524,1747104647431,-927.58,0.00013792,2]
[360887525,1747104647441,-400.0,0.00013792,2]
[360887526,1747104647450,-929.18,0.00013792,2]
[360887527,1747104647460,-400.0,0.00013792,2]
[360887528,1747104647469,-400.0,0.00013792,2]
[360887529,1747104647479,-400.0,0.00013792,2]
[360887530,1747104647488,-400.0,0.00013792,2]
[360887531,1747104647498,-955.68,0.00013792,2]
[360887532,1747104647507,-400.0,0.00013792,2]
[360887533,1747104647516,-550.76,0.00013792,2]
[360887534,1747104647526,-3342.69,0.00013792,2]
[360887535,1747104647536,-400.0,0.00013792,2]
[360887536,1747104647545,-400.0,0.00013792,2]
[360887537,1747104647555,-1311.21,0.00013792,2]
[360887538,1747104647564,-698.22,0.00013792,2]
[360887539,1747104647574,-789.47,0.00013792,2]
[360887540,1747104647585,-1115.97,0.00013792,2]
[360887541,1747104647595,-400.0,0.00013792,2]
[360887542,1747104647605,-400.0,0.00013792,2]
[360887543,1747104647615,-400.0,0.00013792,2]
[360887544,1747104647625,-670.63,0.00013792,2]
[360887545,1747104647635,-400.0,0.00013792,2]
[360887546,1747104647645,-2517.02,0.00013792,2]
[360887547,1747104647655,-400.0,0.00013792,2]
[360887548,1747104647664,-884.56,0.00013792,2]
[360887549,1747104647674,-486.98,0.00013792,2]
[360887550,1747104647686,-1249.17,0.00013792,2]
[360887551,1747104647696,-797.82,0.00013792,2]
[360887552,1747104647705,-400.0,0.00013792,2]
[360887553,1747104647714,-487.99586667,0.00013792,2]
[360887554,1747104647725,-929.91,0.00013792,2]
[360887555,1747104647734,-480.28,0.00013792,2]
[360887556,1747104647744,-310.32744511,0.00013792,2]
[360887557,1747104647754,-400.0,0.00013793,2]
[360887558,1747104647763,-400.0,0.00013793,2]
[360887559,1747104647773,-400.0,0.00013793,2]
[360887560,1747104647783,-400.0,0.00013793,2]
[360887561,1747104647792,-152.502086,0.00013793,2]
[360887562,1747104647802,-152.502086,0.00013793,2]
[360887563,1747104647811,-241.48411712,0.00013793,2]
[360887564,1747104647824,-400.0,0.00013793,2]
[360887565,1747104647833,-400.0,0.00013793,2]
[360887566,1747104647843,-424.03021364,0.00013793,2]
[360887567,1747104647853,-165.12702261,0.00013793,2]
[360887568,1747104647863,-579.43,0.00013793,2]
[360887569,1747104647872,-400.0,0.00013793,2]
[360887570,1747104647882,-152.988202,0.00013793,2]
[360887571,1747104647891,-150.54590498,0.00013793,2]
[360887572,1747104647903,-486.79899121,0.00013793,2]
[360887573,1747104647913,-357.85808565,0.00013793,2]
[360887574,1747104647923,-464.58058534,0.00013793,2]
[360887575,1747104647936,-459.21,0.00013793,2]
[360887576,1747104647947,-153.783987,0.00013793,2]
[360887577,1747104647956,-400.0,0.00013793,2]
[360887578,1747104647966,-400.0,0.00013793,2]
[360887579,1747104647975,-400.0,0.00013793,2]
[360887580,1747104647985,-400.0,0.00013793,2]
[360887581,1747104647994,-400.0,0.00013793,2]
[360887582,1747104648005,-400.0,0.00013793,2]
[360887583,1747104648014,-425.1,0.00013793,2]
[360887584,1747104648023,-400.0,0.00013793,2]
[360887585,1747104648033,-438.41,0.00013793,2]
[360887586,1747104648043,-400.0,0.00013793,2]
[360887587,1747104648053,-400.0,0.00013793,2]
[360887588,1747104648064,-537.24,0.00013793,2]
[360887589,1747104648074,-198.71394551,0.00013793,2]
[360887590,1747104648084,-400.0,0.00013793,2]
[360887591,1747104648096,-517.29,0.00013793,2]
[360887592,1747104648107,-400.0,0.00013793,2]
[360887593,1747104648117,-251.315542,0.00013793,2]
[360887594,1747104648127,-400.0,0.00013793,2]
[360887595,1747104648137,-400.0,0.00013793,2]
[360887596,1747104648147,-400.0,0.00013793,2]
[360887597,1747104648156,-400.0,0.00013793,2]
[360887598,1747104648167,-400.0,0.00013793,2]
[360887599,1747104648176,-400.0,0.00013793,2]
[360887600,1747104648187,-400.0,0.00013793,2]
[360887601,1747104648197,-400.0,0.00013793,2]
[360887602,1747104648207,-400.0,0.00013793,2]
[360887603,1747104648217,-400.0,0.00013793,2]
[360887604,1747104648228,-400.0,0.00013793,2]
[360887605,1747104648238,-400.0,0.00013793,2]
[360887606,1747104648247,-365.00948222,0.00013793,2]
[360887607,1747104648257,-400.0,0.00013793,2]
[360887608,1747104648267,-293.014488,0.00013793,2]
[360887609,1747104648276,-151.0,0.00013793,2]
[360887610,1747104648286,-151.0,0.00013793,2]
[360887611,1747104648295,-400.0,0.00013793,2]
[360887612,1747104648305,-400.0,0.00013793,2]
[360887613,1747104648314,-400.0,0.00013793,2]
[360887614,1747104648324,-400.0,0.00013793,2]
[360887615,1747104648333,-400.0,0.00013793,2]
[360887616,1747104648343,-400.0,0.00013793,2]
[360887617,1747104648352,-400.0,0.00013793,2]
[360887618,1747104648362,-581.94,0.00013793,2]
[360887619,1747104648372,-400.0,0.00013793,2]
[360887620,1747104648382,-400.0,0.00013793,2]
[360887621,1747104648391,-400.0,0.00013793,2]
[360887622,1747104648401,-400.0,0.00013793,2]
[360887623,1747104648411,-400.0,0.00013793,2]
[360887624,1747104648421,-511.66,0.00013793,2]
[360887625,1747104648432,-400.0,0.00013793,2]
[360887626,1747104648442,-400.0,0.00013793,2]
[360887627,1747104648452,-400.0,0.00013793,2]
[360887628,1747104648462,-400.0,0.00013793,2]
[360887629,1747104648473,-400.0,0.00013793,2]
[360887630,1747104648482,-151.0,0.00013793,2]
[360887631,1747104648492,-465.64478825,0.00013793,2]
[360887632,1747104648502,-167.71704,0.00013793,2]
[360887633,1747104648512,-400.0,0.00013793,2]
[360887634,1747104648521,-250.22735386,0.00013793,2]
[360887635,1747104648531,-400.0,0.00013793,2]
[360887636,1747104648542,-225.451955,0.00013793,2]
[360887637,1747104648551,-400.0,0.00013793,2]
[360887638,1747104648561,-400.0,0.00013793,2]
[360887639,1747104648571,-400.0,0.00013793,2]
[360887640,1747104648581,-241.80948431,0.00013793,2]
[360887641,1747104648592,-400.0,0.00013793,2]
[360887642,1747104648602,-427.63,0.00013793,2]
[360887643,1747104648612,-400.0,0.00013793,2]
[360887644,1747104648621,-529.96476161,0.00013793,2]
[360887645,1747104648630,-410.56,0.00013793,2]
[360887646,1747104648640,-448.82757198,0.00013793,2]
[360887647,1747104648650,-400.0,0.00013793,2]
[360887648,1747104648661,-400.0,0.00013793,2]
[360887649,1747104648670,-450.84651703,0.00013793,2]
[360887650,1747104648680,-422.7587097,0.00013793,2]
[360887651,1747104648689,-400.0,0.00013793,2]
[360887652,1747104648699,-433.95756322,0.00013793,2]
[360887653,1747104648708,-400.0,0.00013793,2]
[360887654,1747104648718,-400.0,0.00013793,2]
[360887655,1747104648727,-400.0,0.00013793,2]
[360887656,1747104648737,-400.0,0.00013793,2]
[360887657,1747104648747,-151.0,0.00013793,2]
[360887658,1747104648756,-151.0,0.00013793,2]
[360887659,1747104648766,-400.0,0.00013793,2]
[360887660,1747104648776,-432.07599917,0.00013793,2]
[360887661,1747104648785,-400.0,0.00013793,2]
[360887662,1747104648795,-859.94,0.00013793,2]
[360887663,1747104648805,-400.0,0.00013793,2]
[360887664,1747104648814,-505.82,0.00013793,2]
[360887665,1747104648829,-400.0,0.00013793,2]
[360887666,1747104648839,-532.76,0.00013793,2]
[360887667,1747104648849,-400.0,0.00013793,2]
[360887668,1747104648859,-400.0,0.00013793,2]
[360887669,1747104648869,-449.29,0.00013793,2]
[360887670,1747104648881,-400.0,0.00013793,2]
[360887671,1747104648892,-400.0,0.00013793,2]
[360887672,1747104648903,-545.13948678,0.00013793,2]
[360887673,1747104648914,-400.0,0.00013793,2]
[360887674,1747104648924,-228.10197301,0.00013793,2]
[360887675,1747104648935,-400.0,0.00013793,2]
[360887676,1747104648945,-522.69,0.00013793,2]